[Event "44th Chess Olympiad Women 2022"]
[Site "Chennai"]
[Date "2022.08.05"]
[Round "7.5"]
[White "Sargsyan, Anna M."]
[Black "Klinova, Masha"]
[Result "1/2-1/2"]
[WhiteElo "2378"]
[BlackElo "2251"]
[Annotator "TA"]
[PlyCount "97"]
[EventDate "2022.??.??"]
[TimeControl "60"]

{[%evp 21,97,27,12,12,17,21,82,89,61,20,17,30,20,-42,-33,-30,-35,-59,-94,-72,0,
0,0,0,0,0,0,0,15,4,8,0,0,0,0,0,0,0,29,-21,0,0,0,0,0,0,0,0,0,0,0,0,0,0,0,0,0,0,
0,0,0,0,0,0,0,0,0,0,0,0,0,0,0,0,0,0,0,0]} 1. d4 {[%emt 0:00:04]} d6 {[%emt 0:
00:00]} 2. e4 {[%emt 0:00:59]} Nf6 {[%emt 0:00:04]} 3. Nc3 {[%emt 0:00:06]} g6
{[%emt 0:00:05]} 4. f4 {[%emt 0:01:09]} Bg7 {[%emt 0:00:09]} 5. Nf3 {[%emt 0:
00:00]} O-O {[%emt 0:00:19]} 6. Bd3 {[%emt 0:02:39]} Nc6 {[%emt 0:02:32]} 7. e5
{[%emt 0:03:23]} dxe5 {[%emt 0:00:27]} 8. fxe5 {[%emt 0:00:07]} Nh5 {[%emt 0:
00:00]} 9. Be3 {[%emt 0:05:34]} Bg4 {[%emt 0:05:30]} 10. Be2 {[%emt 0:16:52]}
f6 {[%emt 0:00:24]} 11. exf6 {[%emt 0:13:45]} exf6 {[%emt 0:04:53]} 12. Qd2 {
[%emt 0:03:15] B09: Pirc Defence: Austrian Attack.} Re8 {[%emt 0:03:54]} 13.
O-O-O {[%emt 0:00:37]} Qe7 {[%emt 0:08:16] [#]} (13... Ne7 $1 $11 14. Bd3 Nf5
15. Bxf5 Bxf5) 14. Rhe1 $1 $16 {[%emt 0:04:13][%cal Yh2h3] White is better.}
Kh8 {[%emt 0:04:44] [#]} 15. Nd5 $146 {[%emt 0:03:51]} ({Predecessor:} 15. Bh6
Rad8 16. Bb5 Qf7 17. Bxg7+ Nxg7 18. Rxe8+ Nxe8 19. Qf4 Bxf3 20. Qxf3 Na5 21.
Bxe8 Rxe8 {1-0 (31) Ziemacki,J-Dunat,W Poland 1994}) 15... Qd6 {[%emt 0:02:32]}
16. c4 {[%emt 0:00:42] Black must now prevent h3.} Ne7 {[%emt 0:06:11][%cal
Yc6e7,Ye7f5,Yf5e3]} 17. Nc3 {[%emt 0:12:47]} (17. Nxe7 $1 $11 Rxe7 18. Bd3)
17... Nf5 $15 {[%emt 0:04:24]} 18. Ng5 $1 {[%emt 0:02:00]} fxg5 {[%emt 0:00:00]
} 19. Bxg4 {[%emt 0:00:04]} Nxe3 {[%emt 0:09:16]} 20. Rxe3 {[%emt 0:00:00]}
Qxh2 {[%emt 0:06:20]} (20... Rxe3 $17 21. Qxe3 Nf6) 21. Rh3 $1 $11 {[%emt 0:01:
25]} Qf4 {[%emt 0:05:46]} 22. Bxh5 {[%emt 0:00:12]} Qxd2+ {[%emt 0:00:00]} 23.
Rxd2 {[%emt 0:00:12] [#] Strongly threatening Bxg6.} gxh5 {[%emt 0:00:00]} 24.
Rxh5 {[%emt 0:00:11]} c6 {[%emt 0:03:12]} 25. Kc2 {[%emt 0:01:20]} h6 {[%emt 0:
02:59]} 26. d5 {[%emt 0:01:48]} cxd5 {[%emt 0:01:24]} 27. Rxd5 {[%emt 0:03:24]}
Rac8 {[%emt 0:07:53]} 28. Kb3 {[%emt 0:01:31]} Kg8 {[%emt 0:00:00]} 29. Rd7 {
[%emt 0:00:53]} Rb8 {[%emt 0:00:49]} 30. Nd5 {[%emt 0:03:25]} (30. Rh1 $142)
30... Rf8 {[%emt 0:04:05] The position is equal.} (30... Red8 $5 {[%cal Rd8d7]}
31. Rc7 b5 $11) 31. Rh3 {[%emt 0:05:20]} Rf7 {[%emt 0:00:14]} 32. Rxf7 {
[%emt 0:00:34]} Kxf7 {[%emt 0:00:04] Endgame KRB-KRN} 33. Rf3+ {[%emt 0:00:04]}
Ke6 {[%emt 0:01:28]} 34. Nc7+ {[%emt 0:00:40]} Ke7 {[%emt 0:00:38]} 35. Nd5+ {
[%emt 0:00:36]} Ke6 {[%emt 0:00:06]} 36. Nc7+ {[%emt 0:02:23]} Ke7 {[%emt 0:00:
09]} 37. Re3+ {[%emt 0:00:07]} Kd7 {[%emt 0:00:00]} 38. Ne6 {[%emt 0:01:07]}
Bf8 {[%emt 0:00:56]} 39. g4 {[%emt 0:01:46]} Re8 {[%emt 0:00:29]} 40. Nxf8+ {
[%emt 0:00:26]} Rxf8 {[%emt 0:00:03] KR-KR} 41. Rh3 {[%emt 0:32:16]} Rf4 {
[%emt 0:30:47]} 42. Rxh6 {[%emt 0:00:20]} Rxg4 {[%emt 0:00:00]} 43. Rh7+ {
[%emt 0:04:00]} Kc6 {[%emt 0:00:00]} 44. Kb4 {[%emt 0:00:00]} Rg2 {[%emt 0:00:
00]} 45. b3 {[%emt 0:00:00]} Rxa2 {[%emt 0:00:00]} 46. Rh6+ {[%emt 0:00:00]}
Kc7 {[%emt 0:00:00]} 47. Rh7+ {[%emt 0:00:00]} Kc6 {[%emt 0:00:00]} 48. Rh6+ {
[%emt 0:00:00]} Kc7 {[%emt 0:00:00]} 49. Rh7+ {[%emt 0:00:00] Weighted Error
Value: White=0.06 (flawless) /Black=0.06 (flawless)} 1/2-1/2

[Event "44th Chess Olympiad Women 2022"]
[Site "Chennai"]
[Date "2022.08.05"]
[Round "7.6"]
[White "Abdumalik, Zhansaya"]
[Black "Vo, Thi Kim Phung"]
[Result "1-0"]
[WhiteElo "2495"]
[BlackElo "2333"]
[Annotator "TA"]
[PlyCount "139"]
[EventDate "2022.??.??"]
[TimeControl "60"]

{[%evp 22,139,22,20,33,34,21,31,76,57,129,74,68,64,91,44,59,73,58,54,84,88,100,
35,17,41,41,0,0,0,0,-2,38,38,27,33,33,28,33,30,42,27,22,28,24,17,43,38,41,31,
46,25,44,31,31,21,35,14,7,14,8,0,1,3,47,42,162,104,94,106,102,108,106,84,179,
174,173,170,214,222,222,222,222,215,222,215,215,215,215,215,215,208,208,208,
221,215,215,193,192,191,226,213,274,274,388,251,388,392,29977,29978,29977,
29977,29980,29980,29981,29981,29980,29979,29974,5605]} 1. e4 {[%emt 0:00:06]}
e6 {[%emt 0:00:19]} 2. d4 {[%emt 0:00:06]} d5 {[%emt 0:00:13]} 3. Nd2 {[%emt 0:
00:00]} c5 {[%emt 0:00:10]} 4. exd5 {[%emt 0:00:43]} Qxd5 {[%emt 0:00:12]} 5.
Ngf3 {[%emt 0:00:14]} cxd4 {[%emt 0:00:24]} 6. Bc4 {[%emt 0:00:14]} Qd6 {
[%emt 0:00:17]} 7. O-O {[%emt 0:00:16]} Nf6 {[%emt 0:00:17]} 8. Nb3 {[%emt 0:
00:00]} Nc6 {[%emt 0:02:42]} 9. Nbxd4 {[%emt 0:02:53]} Nxd4 {[%emt 0:00:55]}
10. Nxd4 {[%emt 0:00:39]} Bd7 {[%emt 0:07:47]} 11. c3 {[%emt 0:04:53]} Qc7 {
[%emt 0:07:09]} 12. Qe2 {[%emt 0:03:19]} Rc8 {[%emt 0:10:35] C07: French
Tarrasch: 3...c5, 4 Ngf3 and 4 exd5 Qxd5.} 13. Bb3 {[%emt 0:06:51]} Bd6 {
[%emt 0:08:33]} 14. g3 {[%emt 0:08:50] [#]} Bc5 $146 {[%emt 0:11:45] White is
slightly better.} ({Predecessor:} 14... O-O 15. Nb5 Bxb5 16. Qxb5 Rfd8 17. Bg5
Qc5 18. Qxc5 Bxc5 19. Bxf6 gxf6 20. Rad1 {½-½ (20) Vorobiov,E (2435)
-Rustemov,A (2550) Krasnodar 1997}) 15. Bf4 {[%emt 0:09:38]} Qb6 {[%emt 0:00:
00]} (15... Qd8 $1 $14) 16. Be5 {[%emt 0:00:05] White is much more active.} (
16. Nf5 $142 $1 {[%cal Rf5g7]} Bf8 17. Rfe1) 16... Be7 $16 {[%emt 0:08:46]} 17.
Rad1 {[%emt 0:07:07]} O-O {[%emt 0:02:27] [#]} 18. Rfe1 {[%emt 0:01:32]} (18.
Nf5 $1 $16 exf5 19. Bxf6) 18... Rcd8 {[%emt 0:07:40]} 19. h4 {[%emt 0:06:22]}
Bc6 {[%emt 0:08:53]} 20. h5 {[%emt 0:07:41][%cal Yh5h6]} Bd5 {[%emt 0:01:02]}
21. Bc2 {[%emt 0:06:03]} Rc8 {[%emt 0:01:07]} 22. Bb1 {[%emt 0:01:02]} (22. b3
$1 $16) 22... Rfd8 $14 {[%emt 0:01:20]} 23. b3 {[%emt 0:04:56]} Nd7 {[%emt 0:
00:00]} (23... Rxc3 $2 24. Nf5 $1 (24. Nxe6 Rxg3+ 25. Bxg3 fxe6 $16) 24... exf5
25. Bxc3 $18) 24. Qd3 {[%emt 0:05:07]} (24. Nf5 $5 exf5 25. Rxd5 $14) 24... g6
$1 {[%emt 0:00:11]} 25. Bf4 {[%emt 0:03:55]} Bf6 {[%emt 0:00:06] Strongly
threatening ...e5.} 26. c4 $132 {[%emt 0:04:11] White is fighting back} Nc5 {
[%emt 0:05:52]} (26... Bxc4 $5 27. bxc4 e5 $11) 27. Qe3 {[%emt 0:00:00]} Be4 {
[%emt 0:00:40] Threatens to win with ...Bxb1.} 28. Bxe4 {[%emt 0:00:00]} Nxe4 {
[%emt 0:00:02]} 29. Qxe4 {[%emt 0:00:30]} Bxd4 {[%emt 0:00:21]} 30. Qf3 {
[%emt 0:02:44]} Qc6 {[%emt 0:01:21]} 31. Kg2 {[%emt 0:03:20]} Qxf3+ {[%emt 0:
01:57]} 32. Kxf3 {[%emt 0:00:04]} Bc3 {[%emt 0:00:22]} 33. Rh1 {[%emt 0:00:34]}
Bf6 {[%emt 0:00:42]} 34. Be3 {[%emt 0:01:03]} b6 {[%emt 0:00:00]} 35. g4 {
[%emt 0:01:45]} Bc3 {[%emt 0:00:59]} 36. g5 {[%emt 0:01:19]} Kf8 {[%emt 0:00:
49]} 37. Ke2 {[%emt 0:00:13]} Ke7 {[%emt 0:00:25]} 38. Bc1 {[%emt 0:00:00]} e5
{[%emt 0:01:41]} 39. Rd3 {[%emt 0:00:31]} Rxd3 {[%emt 0:01:13]} 40. Kxd3 $11 {
[%emt 0:00:01] Endgame KRB-KRB} Bd4 {[%emt 0:01:11]} 41. f4 {[%emt 0:31:40]}
Ke6 {[%emt 0:30:38]} 42. Ke4 {[%emt 0:00:00]} Rd8 {[%emt 0:00:00]} 43. Rd1 {
[%emt 0:00:00]} Re8 {[%emt 0:00:00]} (43... Rf8 $1 $14) 44. Rf1 {[%emt 0:12:10]
} ({White should try} 44. Ba3 $18) 44... f5+ $16 {[%emt 0:00:00]} (44... gxh5
$2 45. f5+ (45. Rh1 f5+ 46. gxf6 Rd8 $16) 45... Ke7 46. Ba3+ Bc5 47. Bxc5+ bxc5
48. Rh1 $18 (48. Kxe5 h6 $16)) 45. gxf6 $1 {[%emt 0:00:00]} Rf8 {[%emt 0:00:00]
} 46. hxg6 {[%emt 0:00:00]} hxg6 {[%emt 0:00:00]} 47. Rh1 {[%emt 0:00:00] Rh7
is the strong threat.} Rxf6 {[%emt 0:00:00] [#]} (47... Rd8 $16 {is a better
defense.}) 48. Rh7 $1 $18 {[%emt 0:00:00]} Bc5 {[%emt 0:00:00]} 49. Rxa7 {
[%emt 0:00:00]} exf4 {[%emt 0:00:32]} 50. Bxf4 {[%emt 0:00:00]} g5 {[%emt 0:04:
10]} 51. Bxg5 {[%emt 0:00:00]} Rf2 {[%emt 0:00:17]} 52. Ra8 {[%emt 0:00:00]}
Re2+ {[%emt 0:00:56]} 53. Kd3 {[%emt 0:00:00]} Rg2 {[%emt 0:00:00]} 54. Bd2 {
[%emt 0:00:00]} Rg3+ {[%emt 0:00:27]} 55. Kc2 {[%emt 0:00:00]} Rg2 {[%emt 0:00:
19]} 56. Re8+ {[%emt 0:00:00]} Kd7 {[%emt 0:00:08]} 57. Re5 {[%emt 0:00:00]}
Kc6 {[%emt 0:00:38]} 58. Kd3 {[%emt 0:00:00]} Rg3+ {[%emt 0:00:00]} 59. Ke4 {
[%emt 0:00:00]} Rg2 {[%emt 0:01:12]} 60. Rd5 {[%emt 0:00:00]} Re2+ {[%emt 0:00:
19]} 61. Kd3 {[%emt 0:00:00]} Rg2 {[%emt 0:00:42]} 62. b4 {[%emt 0:00:00][%cal
Yb3b4,Yb4b5]} Bd6 {[%emt 0:00:27]} (62... Rg3+ {was worth a try.} 63. Ke2 Bf8
64. b5+ Kb7) 63. a4 {[%emt 0:00:00] And now b5+ would win.} Rg3+ {[%emt 0:00:
12]} (63... Rxd2+ {was called for.} 64. Kxd2 Bxb4+ 65. Ke3 Bf8) 64. Kc2 {
[%emt 0:00:00]} Ra3 $2 {[%emt 0:00:54]} (64... Rg4 $18) 65. b5+ {[%emt 0:00:00]
White mates.} Kc7 {[%emt 0:00:16] [#]} 66. Rxd6 $1 {[%emt 0:00:00]} Rxa4 {
[%emt 0:00:59]} (66... Ra2+ 67. Kb3) 67. Rc6+ {[%emt 0:00:00]} Kb7 {[%emt 0:00:
04]} 68. Kb3 {[%emt 0:00:00]} Ra1 {[%emt 0:00:10]} 69. Be3 {[%emt 0:00:00]}
Rb1+ {[%emt 0:00:11]} 70. Kc3 {[%emt 0:00:00] Weighted Error Value: White=0.10
(very precise) /Black=0.14 (very precise)} 1-0

[Event "44th Chess Olympiad Women 2022"]
[Site "Chennai"]
[Date "2022.08.05"]
[Round "7.6"]
[White "Bach, Ngoc Thuy Duong"]
[Black "Nurgali, Nazerke"]
[Result "1/2-1/2"]
[WhiteElo "2192"]
[BlackElo "2181"]
[Annotator "ChessBase"]
[PlyCount "66"]
[EventDate "2022.??.??"]
[TimeControl "60"]

1. d4 {[%emt 0:00:12]} d5 {[%emt 0:00:14]} 2. c4 {[%emt 0:00:17]} e6 {[%emt 0:
00:00]} 3. Nc3 {[%emt 0:00:13]} Be7 {[%emt 0:00:27]} 4. cxd5 {[%emt 0:04:53]}
exd5 {[%emt 0:00:16]} 5. Bf4 {[%emt 0:00:13]} Nf6 {[%emt 0:01:57]} 6. e3 {
[%emt 0:02:06]} Bf5 {[%emt 0:01:32]} 7. Nf3 {[%emt 0:03:55]} O-O {[%emt 0:00:
00]} 8. Bd3 {[%emt 0:02:20]} Bxd3 {[%emt 0:02:17]} 9. Qxd3 {[%emt 0:00:08]} c6
{[%emt 0:01:24]} 10. O-O {[%emt 0:00:34]} Nbd7 {[%emt 0:01:15]} 11. h3 {
[%emt 0:04:46]} Re8 {[%emt 0:03:23]} 12. Rab1 {[%emt 0:02:24]} a5 {[%emt 0:00:
00]} 13. Qc2 {[%emt 0:04:19]} Nf8 {[%emt 0:11:43]} 14. Rfd1 {[%emt 0:17:07]}
Ng6 {[%emt 0:01:50]} 15. Ne5 {[%emt 0:04:05]} Bd6 {[%emt 0:04:08]} 16. Nxg6 {
[%emt 0:00:46]} hxg6 {[%emt 0:01:14]} 17. Bxd6 {[%emt 0:02:12]} Qxd6 {[%emt 0:
00:00]} 18. a3 {[%emt 0:00:10]} Ne4 {[%emt 0:12:50]} 19. Nxe4 {[%emt 0:00:34]}
Rxe4 {[%emt 0:00:04]} 20. b4 {[%emt 0:02:59]} axb4 {[%emt 0:00:07]} 21. axb4 {
[%emt 0:00:24]} b5 {[%emt 0:14:12]} 22. Ra1 {[%emt 0:02:23]} Ree8 {[%emt 0:00:
00]} 23. Rdc1 {[%emt 0:06:39]} Rxa1 {[%emt 0:09:31]} 24. Rxa1 {[%emt 0:00:08]}
Re6 {[%emt 0:01:56]} 25. Ra8+ {[%emt 0:02:42]} Kh7 {[%emt 0:00:04]} 26. Qc3 {
[%emt 0:05:00]} Rf6 {[%emt 0:01:01]} 27. Ra7 {[%emt 0:16:06]} Qe6 {[%emt 0:00:
00]} 28. Qc5 {[%emt 0:03:49]} Qf5 {[%emt 0:02:44]} 29. f3 {[%emt 0:00:43]} Qb1+
{[%emt 0:04:31]} 30. Kh2 {[%emt 0:00:11]} Qe1 {[%emt 0:00:27]} 31. Qe7 {
[%emt 0:05:51]} Rxf3 {[%emt 0:02:52]} 32. gxf3 {[%emt 0:00:28]} Qf2+ {[%emt 0:
00:00]} 33. Kh1 {[%emt 0:00:06]} Qf1+ {[%emt 0:00:05]} 1/2-1/2

[Event "44th Chess Olympiad Women 2022"]
[Site "Chennai"]
[Date "2022.08.05"]
[Round "7.6"]
[White "Hoang, Thi Bao Tram"]
[Black "Assaubayeva, Bibisara"]
[Result "1/2-1/2"]
[WhiteElo "2288"]
[BlackElo "2436"]
[Annotator "TA"]
[PlyCount "84"]
[EventDate "2022.??.??"]
[TimeControl "60"]

{[%evp 17,84,-11,-3,-7,8,-8,-4,0,23,7,34,0,34,38,63,53,69,64,57,60,43,52,71,54,
87,64,87,89,78,77,160,159,222,228,229,156,152,151,170,158,153,158,154,150,198,
192,216,212,223,209,218,200,191,169,172,97,108,0,204,30,161,144,213,0,108,0,
202,0,102]} 1. Nf3 {[%emt 0:00:18]} c5 {[%emt 0:00:28]} 2. g3 {[%emt 0:00:59]}
g6 {[%emt 0:00:11]} 3. Bg2 {[%emt 0:01:02]} Bg7 {[%emt 0:00:25]} 4. O-O {
[%emt 0:01:43]} Nc6 {[%emt 0:00:04]} 5. e4 {[%emt 0:05:09]} e5 {[%emt 0:01:00]}
6. d3 {[%emt 0:01:29]} Nge7 {[%emt 0:00:15]} 7. Be3 {[%emt 0:00:58]} d6 {
[%emt 0:01:05]} 8. c3 {[%emt 0:02:00][%cal Yc2c3,Yc3d4,Yd4d5]} O-O {[%emt 0:00:
10]} 9. Na3 {[%emt 0:05:50]} b6 {[%emt 0:09:13]} 10. Qd2 {[%emt 0:00:00] A04:
Unusual lines after 1 Nf3 and King's Indian Attack.} Re8 {[%emt 0:00:00]} 11.
d4 {[%emt 0:04:08] [#]} exd4 $146 {[%emt 0:07:49]} ({Predecessor:} 11... Bg4
12. d5 Nb8 13. h3 Bc8 14. b4 Nd7 15. Rfd1 Rf8 16. Nc4 Nf6 17. Nfxe5 dxe5 18.
bxc5 bxc5 19. Nxe5 {½-½ (33) Cap,A (2346)-Marek,M (2419) Kouty nad Desnou
2016}) 12. cxd4 {[%emt 0:01:03]} Bg4 {[%emt 0:01:18]} (12... d5 $5 {[%cal
Rd5e4]} 13. e5 Ba6 $15) 13. Nc2 {[%emt 0:06:50]} Qd7 {[%emt 0:12:05]} 14. Rfe1
{[%emt 0:16:40]} Rad8 {[%emt 0:07:15]} 15. d5 {[%emt 0:04:02]} Na5 {[%emt 0:01:
56] [#] Threatens to win with ...Nc4.} 16. Na3 {[%emt 0:00:34] Against Nc4} Qa4
{[%emt 0:05:52]} 17. Bh6 {[%emt 0:11:48]} Bxh6 {[%emt 0:14:08]} 18. Qxh6 {
[%emt 0:00:15] Ng5 would kill now.} Bxf3 {[%emt 0:00:06]} 19. Bxf3 {[%emt 0:00:
11]} Qd4 {[%emt 0:01:46]} 20. Rab1 {[%emt 0:07:02]} a6 {[%emt 0:00:00]} 21.
Red1 {[%emt 0:05:49]} Qf6 {[%emt 0:01:05]} 22. Bg2 {[%emt 0:00:32]} b5 {
[%emt 0:02:18]} 23. b3 {[%emt 0:01:15][%cal Yb2b3,Yb3b4]} c4 {[%emt 0:04:38]} (
23... Nb7 $142) 24. Qe3 $16 {[%emt 0:04:33] aiming for Qb6.} Rb8 {[%emt 0:03:
15] Inhibits Qb6.} (24... cxb3 $16 25. axb3 Rb8) 25. b4 $18 {[%emt 0:00:57]}
Nb7 {[%emt 0:00:12]} 26. Nc2 {[%emt 0:01:19]} Nc8 {[%emt 0:00:00]} 27. Nd4 {
[%emt 0:01:42]} Nd8 {[%emt 0:00:36]} 28. Qa3 {[%emt 0:01:00]} Re7 {[%emt 0:03:
44]} 29. Qc3 {[%emt 0:04:08]} (29. Qxa6 $2 Ra7 30. Qa5 (30. e5 $2 Qxe5 31. Qxa7
Nxa7 $19) 30... Rxa5 $19) 29... Qg7 {[%emt 0:02:08]} 30. a4 {[%emt 0:00:16]
White is much more active. The black rooks are badly placed.} bxa4 {[%emt 0:05:
28]} (30... Na7 $16 {might work better.}) 31. Qxc4 {[%emt 0:00:00]} Ra8 {
[%emt 0:01:44]} 32. Rbc1 {[%emt 0:01:57]} Nb6 {[%emt 0:01:08]} 33. Qa2 {
[%emt 0:00:11]} Rb7 {[%emt 0:00:54]} 34. Qa3 {[%emt 0:00:33]} Qf6 {[%emt 0:00:
39]} 35. Rd3 {[%emt 0:02:56]} Rab8 {[%emt 0:01:01]} 36. Ne2 {[%emt 0:01:14]} (
36. Qa1 $18) 36... Qe7 {[%emt 0:00:26]} 37. Rdc3 {[%emt 0:00:00]} ({Better is} 
37. Rb1 $16) 37... Nd7 $2 {[%emt 0:00:19]} (37... Nxd5 $1 $11 {and Black has
nothing to worry.} 38. exd5 Qxe2) 38. Rc4 $2 {[%emt 0:02:13]} ({Weaker is} 38.
Qxa4 Rxb4 39. Qc2 (39. Qxa6 Nc5 $15) 39... Nc5 $11) (38. Rc7 $18) 38... Nb6 {
[%emt 0:00:45]} (38... Ne5 $11) 39. R4c2 {[%emt 0:00:26]} Nd7 {[%emt 0:00:14]}
(39... Qf6 $16 40. f4 h5) 40. Rc4 {[%emt 0:00:36]} ({Don't play} 40. Qxa4 Rxb4
41. Qxa6 Nc5 $16) ({White should try} 40. Rc7 $18) 40... Nb6 $16 {[%emt 0:01:
18] [#]} 41. R4c2 {[%emt 0:00:37]} (41. Rd4 $1 $16) 41... Nd7 $1 $18 {[%emt 0:
03:41]} 42. Rc4 {[%emt 0:00:37]} ({Resist} 42. Qxa4 $6 Rxb4 43. Qxa6 Nc5 $14) (
42. Nd4 $18) 42... Nb6 {[%emt 0:06:45] Weighted Error Value: White=0.39/
Black=0.28 (precise)} 1/2-1/2

[Event "44th Chess Olympiad Women 2022"]
[Site "Chennai"]
[Date "2022.08.05"]
[Round "7.6"]
[White "Nakhbayeva, Guliskhan"]
[Black "Nguyen, Thi Mai Hung"]
[Result "1/2-1/2"]
[WhiteElo "2329"]
[BlackElo "2223"]
[Annotator "TA"]
[PlyCount "113"]
[EventDate "2022.??.??"]
[TimeControl "60"]

{[%evp 13,113,22,28,0,11,14,12,3,20,20,22,19,25,2,54,48,98,86,93,71,133,127,
152,181,155,160,164,170,316,288,294,83,83,84,85,83,87,88,133,72,72,70,71,70,75,
68,72,66,84,81,61,76,350,241,227,14,64,64,68,0,8,0,16,4,8,0,14,8,5,0,0,0,0,0,0,
0,0,0,0,0,0,0,0,0,0,0,0,-80,-79,-122,-115,-198,0,0,0,0,0,0,0,0,0,0]} 1. d4 {
[%emt 0:00:05]} d5 {[%emt 0:00:27]} 2. c4 {[%emt 0:00:06]} c6 {[%emt 0:00:08]}
3. Nc3 {[%emt 0:00:11]} Nf6 {[%emt 0:00:43]} 4. e3 {[%emt 0:00:06]} Bf5 {
[%emt 0:00:24]} 5. cxd5 {[%emt 0:00:25]} cxd5 {[%emt 0:00:07]} 6. Qb3 {[%emt 0:
00:00]} Bc8 {[%emt 0:00:42] 6...Nc6 is the modern continuation.} 7. Nf3 {
[%emt 0:05:17]} e6 {[%emt 0:01:08]} 8. Bb5+ {[%emt 0:02:40] D10: Slav Defence:
3 cxd5 (without early Nf3) and 3 Nc3.} Nc6 {[%emt 0:05:25][%cal Yb8c6,Yc6a5,
Ya5c4]} 9. O-O {[%emt 0:04:26]} Be7 {[%emt 0:04:39]} 10. Bd2 {[%emt 0:00:00]}
O-O {[%emt 0:04:52] [#]} 11. Rfc1 $146 {[%emt 0:01:33]} ({Predecessor:} 11.
Bxc6 bxc6 12. Rfc1 Bd7 13. Na4 Ne4 14. Qd1 Rb8 15. Ne5 c5 16. Ba5 Qe8 17. Nxd7
Qxd7 {1-0 (54) Kozul,Z (2631)-Ozbay,E (2035) Skopje 2017}) 11... Na5 {[%emt 0:
04:02]} 12. Qc2 {[%emt 0:09:36]} a6 {[%emt 0:05:07]} 13. Bd3 {[%emt 0:00:00]}
h6 {[%emt 0:09:33]} (13... b5 $11) 14. Na4 $1 $14 {[%emt 0:10:51]} b5 {[%emt 0:
11:31]} (14... Nc6 $14) 15. Nc5 $16 {[%emt 0:02:17]} Nc4 {[%emt 0:00:00]} 16.
Be1 {[%emt 0:02:32]} Qb6 {[%emt 0:06:11]} ({Better is} 16... a5) 17. a4 {
[%emt 0:04:07]} ({Weaker is} 17. Bxc4 dxc4 18. b3 Bxc5 19. dxc5 Qxc5 $11) 17...
Bb7 {[%emt 0:01:43]} 18. b3 {[%emt 0:05:45]} Nd6 {[%emt 0:00:39]} 19. Ne5 {
[%emt 0:01:20]} Rfc8 {[%emt 0:01:27]} 20. f3 {[%emt 0:03:32] Prevents Nde4.}
Qd8 {[%emt 0:19:18]} (20... Qc7 $142 21. axb5 Nxb5) 21. axb5 $18 {[%emt 0:00:
00]} Nxb5 {[%emt 0:07:43] [#]} 22. Bxb5 {[%emt 0:07:23]} (22. Nxf7 $1 $18 {
is the precise move to win.} Kxf7 23. Nxb7) 22... Bxc5 $16 {[%emt 0:00:00]} 23.
dxc5 {[%emt 0:00:15]} axb5 {[%emt 0:00:07]} 24. Rxa8 {[%emt 0:00:00]} Bxa8 {
[%emt 0:00:25]} 25. Bh4 {[%emt 0:02:37]} g5 {[%emt 0:03:13]} 26. Bf2 {[%emt 0:
03:09]} (26. Be1 $142) 26... Nd7 {[%emt 0:00:51]} 27. Nxd7 {[%emt 0:00:00]}
Qxd7 {[%emt 0:00:02]} 28. Qc3 {[%emt 0:00:39]} Qe7 {[%emt 0:00:51] Against Qf6}
29. Bg3 {[%emt 0:01:58]} f6 $1 {[%emt 0:00:09]} 30. Bd6 {[%emt 0:00:00]} Qf7 {
[%emt 0:00:27]} 31. Ra1 {[%emt 0:06:14]} Bc6 {[%emt 0:03:17]} 32. h3 {[%emt 0:
02:27]} Ra8 $2 {[%emt 0:01:20] Against Ra6} (32... h5 $16) 33. Rxa8+ $18 {
[%emt 0:00:11]} Bxa8 {[%emt 0:00:04] Endgame KQB-KQB} 34. Qa5 $2 {[%emt 0:00:
14]} (34. c6 $18) 34... Bc6 {[%emt 0:01:21]} (34... Qe8 $1 $11) 35. Qd8+ $1 $14
{[%emt 0:02:24]} Kg7 {[%emt 0:00:19]} 36. Kf2 {[%emt 0:01:11] White is much
more active.} (36. Be7 $14) 36... Qe8 {[%emt 0:00:00]} 37. Qc7+ {[%emt 0:01:41]
} Qd7 {[%emt 0:00:16]} 38. Qb8 {[%emt 0:00:08] [#] Qf8+ is the strong threat.}
Qe8 {[%emt 0:00:09] Prevents Qf8+.} 39. Qb6 {[%emt 0:00:14]} Qd7 {[%emt 0:02:
47]} 40. Ke2 {[%emt 0:00:47]} h5 {[%emt 0:00:00]} 41. Kd2 {[%emt 0:06:37]} e5 {
[%emt 0:03:19]} 42. Kc3 {[%emt 0:03:05]} Kf7 {[%emt 0:08:31]} 43. Kb4 {[%emt 0:
03:38]} d4 {[%emt 0:05:57]} 44. exd4 {[%emt 0:03:46]} exd4 {[%emt 0:00:07]} 45.
Qa6 {[%emt 0:00:30]} Qe8 {[%emt 0:00:00]} 46. Qa7+ {[%emt 0:05:46]} Kg6 {
[%emt 0:02:49] ( -> ...Qe1+)} 47. Qe7 {[%emt 0:04:09] Against Qe1+} Qxe7 {
[%emt 0:05:21]} 48. Bxe7 $11 {[%emt 0:00:03] KB-KB} f5 {[%emt 0:00:57]} 49. h4
{[%emt 0:02:28]} g4 {[%emt 0:00:33]} 50. fxg4 {[%emt 0:00:02]} (50. Bd6 $11)
50... hxg4 $17 {[%emt 0:05:06]} 51. Bd6 {[%emt 0:05:24] Threatens to win with
g3.} Bxg2 {[%emt 0:00:05]} 52. Kxb5 {[%emt 0:00:03]} (52. Ka3 $17 {was worth a
try.}) 52... Bd5 $2 {[%emt 0:01:09]} (52... d3 $19 53. Bf4 Kh5) 53. Kb4 $1 $11
{[%emt 0:01:15] The position is equal.} Kh5 {[%emt 0:00:28]} 54. Bg3 {[%emt 0:
00:25]} f4 {[%emt 0:00:36]} 55. Bxf4 {[%emt 0:00:01]} Kxh4 {[%emt 0:00:01]} 56.
c6 {[%emt 0:00:18]} Bxc6 {[%emt 0:00:55]} 57. Kc4 {[%emt 0:00:10] Never resign
too early! Weighted Error Value: White=0.23 (precise) /Black=0.28 (precise)}
1/2-1/2